[Event "Late-Titled-Tuesday-Blitz-March-12-2024"]
[Site "Chess.com"]
[Date "2024.03.12"]
[Round "1"]
[White "Byniolus"]
[Black "kylelancman"]
[Result "0-1"]
[WhiteElo "2803"]
[BlackElo "2486"]
[TimeControl "180+1"]
[EndTime "14:08:54 PDT"]
[Termination "kylelancman won by resignation"]

1. d4 {[%clk 0:03:00.9]} 1... d5 {[%clk 0:02:55.2]} 2. Nf3 {[%clk 0:03:00.2]}
2... Nf6 {[%clk 0:02:53.1]} 3. Bf4 {[%clk 0:03:00.2]} 3... e6 {[%clk 0:02:49.1]}
4. Nbd2 {[%clk 0:02:59]} 4... c5 {[%clk 0:02:46.4]} 5. c3 {[%clk 0:02:58.3]}
5... Bd6 {[%clk 0:02:45.2]} 6. Bg3 {[%clk 0:02:58.2]} 6... O-O {[%clk
0:02:43.9]} 7. e3 {[%clk 0:02:58.1]} 7... b6 {[%clk 0:02:42.5]} 8. Ne5 {[%clk
0:02:57.4]} 8... Bb7 {[%clk 0:02:41.7]} 9. f4 {[%clk 0:02:55.3]} 9... Nc6 {[%clk
0:02:39.3]} 10. Bd3 {[%clk 0:02:55.4]} 10... Ne7 {[%clk 0:02:39]} 11. Qb1 {[%clk
0:02:55.7]} 11... Ng6 {[%clk 0:02:37.2]} 12. O-O {[%clk 0:02:53.1]} 12... a5
{[%clk 0:02:15.8]} 13. a4 {[%clk 0:02:44.2]} 13... Ba6 {[%clk 0:02:12.3]} 14.
Bxa6 {[%clk 0:02:42.6]} 14... Rxa6 {[%clk 0:02:13.2]} 15. Qd3 {[%clk 0:02:37.3]}
15... Ra8 {[%clk 0:02:10.6]} 16. Qb5 {[%clk 0:02:27.7]} 16... Qc7 {[%clk
0:02:07]} 17. h3 {[%clk 0:02:23.2]} 17... Ne7 {[%clk 0:02:02.4]} 18. Bh4 {[%clk
0:02:16.3]} 18... Ne4 {[%clk 0:01:53]} 19. Nxe4 {[%clk 0:02:12.5]} 19... dxe4
{[%clk 0:01:53.9]} 20. Bxe7 {[%clk 0:02:11.9]} 20... Qxe7 {[%clk 0:01:49.1]} 21.
Nc4 {[%clk 0:02:03.7]} 21... cxd4 {[%clk 0:01:35.4]} 22. cxd4 {[%clk 0:02:04.6]}
22... Rab8 {[%clk 0:01:26.9]} 23. Rac1 {[%clk 0:01:56.5]} 23... Bb4 {[%clk
0:01:18]} 24. Rc2 {[%clk 0:01:45.6]} 24... Qb7 {[%clk 0:01:10.8]} 25. Rfc1
{[%clk 0:01:38.3]} 25... f6 {[%clk 0:00:28]} 26. f5 {[%clk 0:01:20.5]} 26...
exf5 {[%clk 0:00:27.4]} 27. Qxf5 {[%clk 0:01:21.4]} 27... Rfd8 {[%clk
0:00:20.3]} 28. Na3 {[%clk 0:01:00.3]} 28... Bxa3 {[%clk 0:00:19.4]} 29. bxa3
{[%clk 0:01:01.2]} 29... Qd5 {[%clk 0:00:18.8]} 30. Qg4 {[%clk 0:00:51.9]} 30...
f5 {[%clk 0:00:18]} 31. Qg5 {[%clk 0:00:45.4]} 31... h6 {[%clk 0:00:14.5]} 32.
Qg3 {[%clk 0:00:44.5]} 32... Qd6 {[%clk 0:00:13.7]} 33. Qf2 {[%clk 0:00:27]}
33... Rf8 {[%clk 0:00:13.4]} 34. Rc3 {[%clk 0:00:11]} 34... Rb7 {[%clk
0:00:12.4]} 35. Kh1 {[%clk 0:00:08.8]} 35... f4 {[%clk 0:00:12.1]} 36. exf4
{[%clk 0:00:08.4]} 36... Qxf4 {[%clk 0:00:12]} 37. Qe2 {[%clk 0:00:05.6]} 37...
Rd7 {[%clk 0:00:10]} 38. Rd1 {[%clk 0:00:04.7]} 38... Rfd8 {[%clk 0:00:06.6]}
39. Qc4+ {[%clk 0:00:03.3]} 39... Qf7 {[%clk 0:00:06.2]} 40. Qxf7+ {[%clk
0:00:02.4]} 40... Kxf7 {[%clk 0:00:07]} 41. Rc4 {[%clk 0:00:03.2]} 41... Rd5
{[%clk 0:00:06.5]} 42. Rb1 {[%clk 0:00:02.9]} 42... R8d6 {[%clk 0:00:06.4]} 43.
Rb3 {[%clk 0:00:02.4]} 43... Rxd4 {[%clk 0:00:06.7]} 44. Rxd4 {[%clk 0:00:02.9]}
44... Rxd4 {[%clk 0:00:07.1]} 45. Rxb6 {[%clk 0:00:03.8]} 45... Rxa4 {[%clk
0:00:07.7]} 46. Rb3 {[%clk 0:00:04.7]} 46... Ke6 {[%clk 0:00:07.6]} 47. Kg1
{[%clk 0:00:05.3]} 47... Kd5 {[%clk 0:00:08.1]} 48. Kf2 {[%clk 0:00:05.9]} 48...
Kd4 {[%clk 0:00:08.3]} 49. Rg3 {[%clk 0:00:05.7]} 49... g5 {[%clk 0:00:07.5]}
50. Rb3 {[%clk 0:00:05.8]} 50... Rc4 {[%clk 0:00:07.7]} 51. Rb6 {[%clk
0:00:03.8]} 51... Rc2+ {[%clk 0:00:07.3]} 52. Kg1 {[%clk 0:00:03.7]} 52... Rc3
{[%clk 0:00:06.8]} 53. Rxh6 {[%clk 0:00:03.1]} 53... Rxa3 {[%clk 0:00:05.9]} 54.
Rg6 {[%clk 0:00:03.5]} 54... e3 {[%clk 0:00:05.7]} 55. Kf1 {[%clk 0:00:04.2]}
55... Ra1+ {[%clk 0:00:04.3]} 56. Ke2 {[%clk 0:00:04.4]} 56... Ra2+ {[%clk
0:00:05]} 57. Kf3 {[%clk 0:00:03.4]} 57... Rf2+ {[%clk 0:00:05.6]} 58. Kg3
{[%clk 0:00:03.9]} 58... Rf5 {[%clk 0:00:06.1]} 59. Rd6+ {[%clk 0:00:03.3]}
59... Rd5 {[%clk 0:00:06.6]} 60. Rb6 {[%clk 0:00:02.7]} 60... e2 {[%clk
0:00:06.4]} 61. Kf2 {[%clk 0:00:02.5]} 61... Kd3 {[%clk 0:00:05.8]} 62. Rb3+
{[%clk 0:00:02.6]} 62... Kc2 {[%clk 0:00:06.3]} 63. Re3 {[%clk 0:00:02.2]} 63...
a4 {[%clk 0:00:06]} 64. Rxe2+ {[%clk 0:00:02.4]} 64... Kb3 {[%clk 0:00:06.5]}
65. Kg1 {[%clk 0:00:01.6]} 65... a3 {[%clk 0:00:06.5]} 66. Re3+ {[%clk
0:00:01.7]} 66... Kb2 {[%clk 0:00:06.9]} 67. Re2+ {[%clk 0:00:02.1]} 67... Kc3
{[%clk 0:00:07.2]} 68. Re3+ {[%clk 0:00:02.3]} 68... Rd3 {[%clk 0:00:07.7]} 69.
Re5 {[%clk 0:00:02.5]} 69... a2 {[%clk 0:00:07.4]} 70. Ra5 {[%clk 0:00:02.9]}
70... Kb2 {[%clk 0:00:08]} 71. Kh2 {[%clk 0:00:02.6]} 71... Ra3 {[%clk
0:00:08.2]} 72. Rb5+ {[%clk 0:00:02.5]} 72... Kc2 {[%clk 0:00:08.7]} 73. Rc5+
{[%clk 0:00:02.8]} 73... Kd2 {[%clk 0:00:09.2]} 74. Rd5+ {[%clk 0:00:03.4]}
74... Ke2 {[%clk 0:00:09]} 75. Re5+ {[%clk 0:00:03.8]} 75... Kd3 {[%clk
0:00:09.6]} 76. Re1 {[%clk 0:00:03.5]} 76... a1=Q {[%clk 0:00:09.8]} 77. Rxa1
{[%clk 0:00:04.4]} 77... Rxa1 {[%clk 0:00:10.3]} 78. Kg3 {[%clk 0:00:05]} 78...
Ra2 {[%clk 0:00:09.1]} 79. Kf3 {[%clk 0:00:05.5]} 79... Kd4 {[%clk 0:00:09.3]}
80. g3 {[%clk 0:00:05.9]} 80... Ke5 {[%clk 0:00:09.9]} 81. Kg4 {[%clk
0:00:06.8]} 81... Kf6 {[%clk 0:00:10.1]} 82. Kh5 {[%clk 0:00:07.7]} 82... Ra3
{[%clk 0:00:10]} 0-1

[Event "Late-Titled-Tuesday-Blitz-March-12-2024"]
[Site "Chess.com"]
[Date "2024.03.12"]
[Round "1"]
[White "alexrustemov"]
[Black "sjoerd893"]
[Result "1-0"]
[WhiteElo "2855"]
[BlackElo "2486"]
[TimeControl "180+1"]
[EndTime "14:08:58 PDT"]
[Termination "alexrustemov won on time"]

1. d4 {[%clk 0:03:00.9]} 1... d5 {[%clk 0:02:51.9]} 2. c4 {[%clk 0:03:01.2]}
2... c6 {[%clk 0:02:51.6]} 3. Nc3 {[%clk 0:03:00.6]} 3... Nf6 {[%clk 0:02:51.5]}
4. e3 {[%clk 0:03:01.2]} 4... e6 {[%clk 0:02:51.3]} 5. Nf3 {[%clk 0:03:01.6]}
5... Nbd7 {[%clk 0:02:51]} 6. Qc2 {[%clk 0:03:02.1]} 6... Bd6 {[%clk 0:02:50.6]}
7. Bd2 {[%clk 0:03:02.6]} 7... O-O {[%clk 0:02:49]} 8. O-O-O {[%clk 0:03:02.6]}
8... a5 {[%clk 0:02:42.1]} 9. e4 {[%clk 0:03:01.9]} 9... dxe4 {[%clk 0:02:37.5]}
10. Nxe4 {[%clk 0:03:02.8]} 10... Nxe4 {[%clk 0:02:38.3]} 11. Qxe4 {[%clk
0:03:03.7]} 11... Nf6 {[%clk 0:02:38.7]} 12. Qh4 {[%clk 0:03:03.1]} 12... a4
{[%clk 0:02:26]} 13. a3 {[%clk 0:03:02.1]} 13... b5 {[%clk 0:02:15.1]} 14. c5
{[%clk 0:02:57.7]} 14... Be7 {[%clk 0:02:04.9]} 15. Bd3 {[%clk 0:02:55.6]} 15...
b4 {[%clk 0:01:29.5]} 16. Bxb4 {[%clk 0:02:50.9]} 16... Ba6 {[%clk 0:01:29.1]}
17. Bc2 {[%clk 0:02:42.8]} 17... Be2 {[%clk 0:01:02.4]} 18. Ne5 {[%clk
0:02:21.7]} 18... Bxd1 {[%clk 0:00:47.5]} 19. Nxc6 {[%clk 0:02:18.1]} 19... Bxc2
{[%clk 0:00:35.5]} 20. Nxd8 {[%clk 0:02:15.6]} 20... Be4 {[%clk 0:00:35.6]} 21.
f3 {[%clk 0:01:56.4]} 21... Bd5 {[%clk 0:00:34.7]} 22. Nb7 {[%clk 0:01:46.6]}
22... Bxb7 {[%clk 0:00:34.2]} 23. c6 {[%clk 0:01:47.2]} 23... Bxb4 {[%clk
0:00:14.2]} 24. cxb7 {[%clk 0:01:47.1]} 24... Rab8 {[%clk 0:00:14.6]} 25. axb4
{[%clk 0:01:46.9]} 25... Rxb7 {[%clk 0:00:15.3]} 26. Rd1 {[%clk 0:01:34.5]}
26... Nd5 {[%clk 0:00:15.4]} 27. Rd3 {[%clk 0:01:23.3]} 27... Rxb4 {[%clk
0:00:15.2]} 28. Qf2 {[%clk 0:01:17.6]} 28... Rc8+ {[%clk 0:00:14.2]} 29. Kb1
{[%clk 0:01:13.2]} 29... Rcb8 {[%clk 0:00:14.5]} 30. Ka2 {[%clk 0:01:07.5]}
30... g6 {[%clk 0:00:10.6]} 31. Qd2 {[%clk 0:01:03.2]} 31... R4b5 {[%clk
0:00:04.8]} 32. Ra3 {[%clk 0:00:59.2]} 32... Rb4 {[%clk 0:00:03.6]} 33. g3
{[%clk 0:00:53.5]} 33... h5 {[%clk 0:00:03.4]} 34. h3 {[%clk 0:00:48.7]} 34...
Kh7 {[%clk 0:00:03.6]} 35. g4 {[%clk 0:00:47.5]} 35... hxg4 {[%clk 0:00:03.6]}
36. fxg4 {[%clk 0:00:43.1]} 36... Rxb2+ {[%clk 0:00:03.5]} 37. Qxb2 {[%clk
0:00:42.5]} 37... Rxb2+ {[%clk 0:00:04.4]} 38. Kxb2 {[%clk 0:00:42.9]} 38... Nf4
{[%clk 0:00:05.1]} 39. Rf3 {[%clk 0:00:33.5]} 39... g5 {[%clk 0:00:04.1]} 40. h4
{[%clk 0:00:34]} 40... Kg6 {[%clk 0:00:03.5]} 41. h5+ {[%clk 0:00:27.4]} 41...
Kh6 {[%clk 0:00:02.9]} 42. Ka3 {[%clk 0:00:26.3]} 42... f5 {[%clk 0:00:03.3]}
43. gxf5 {[%clk 0:00:24.4]} 43... exf5 {[%clk 0:00:04.2]} 44. Kxa4 {[%clk
0:00:16.2]} 44... Kxh5 {[%clk 0:00:04.7]} 45. Kb5 {[%clk 0:00:15.9]} 45... Ne2
{[%clk 0:00:03.2]} 46. Kc5 {[%clk 0:00:11.7]} 46... f4 {[%clk 0:00:03.7]} 47. d5
{[%clk 0:00:11.4]} 47... g4 {[%clk 0:00:04.3]} 48. Rf2 {[%clk 0:00:11.6]} 48...
f3 {[%clk 0:00:04.5]} 49. d6 {[%clk 0:00:09.5]} 49... Nf4 {[%clk 0:00:04]} 50.
d7 {[%clk 0:00:05.8]} 50... g3 {[%clk 0:00:04.6]} 51. Rxf3 {[%clk 0:00:05.4]}
51... g2 {[%clk 0:00:05.1]} 52. Rxf4 {[%clk 0:00:04.9]} 52... g1=Q+ {[%clk
0:00:05.3]} 53. Rd4 {[%clk 0:00:05.6]} 53... Qc1+ {[%clk 0:00:05]} 54. Kd6
{[%clk 0:00:05.8]} 54... Qh6+ {[%clk 0:00:04.4]} 55. Kc7 {[%clk 0:00:04.8]}
55... Qc1+ {[%clk 0:00:04.1]} 56. Kd6 {[%clk 0:00:04]} 56... Qh6+ {[%clk
0:00:03.8]} 57. Kc5 {[%clk 0:00:04.3]} 57... Qf8+ {[%clk 0:00:02.6]} 58. Kc6
{[%clk 0:00:04]} 58... Qf6+ {[%clk 0:00:02.4]} 59. Rd6 {[%clk 0:00:04.2]} 59...
Qc3+ {[%clk 0:00:02.3]} 60. Kb7 {[%clk 0:00:04.6]} 60... Qb4+ {[%clk 0:00:02.5]}
61. Rb6 {[%clk 0:00:04.5]} 61... Qe4+ {[%clk 0:00:02.3]} 62. Rc6 {[%clk
0:00:03.5]} 62... Qb4+ {[%clk 0:00:02.2]} 63. Kc7 {[%clk 0:00:03.9]} 63... Qf4+
{[%clk 0:00:01.6]} 64. Kc8 {[%clk 0:00:04.2]} 64... Qf8+ {[%clk 0:00:01.6]} 65.
d8=Q {[%clk 0:00:03.7]} 65... Qf5+ {[%clk 0:00:02.5]} 66. Qd7 {[%clk 0:00:04]}
66... Qf8+ {[%clk 0:00:02.7]} 67. Kb7 {[%clk 0:00:04.1]} 67... Qb4+ {[%clk
0:00:02.5]} 68. Rb6 {[%clk 0:00:04]} 68... Qe4+ {[%clk 0:00:02.9]} 69. Qc6
{[%clk 0:00:04]} 69... Qe7+ {[%clk 0:00:03.1]} 70. Ka6 {[%clk 0:00:04.2]} 70...
Qa3+ {[%clk 0:00:03.2]} 71. Kb7 {[%clk 0:00:03.5]} 71... Qe7+ {[%clk 0:00:03.3]}
72. Qc7 {[%clk 0:00:04.2]} 72... Qe4+ {[%clk 0:00:03.5]} 73. Kb8 {[%clk
0:00:04.4]} 73... Qe8+ {[%clk 0:00:03.7]} 74. Qc8 {[%clk 0:00:04.7]} 74... Qe5+
{[%clk 0:00:03.2]} 75. Ka7 {[%clk 0:00:05.1]} 75... Qa5+ {[%clk 0:00:02.8]} 76.
Qa6 {[%clk 0:00:05.8]} 76... Qg5 {[%clk 0:00:01.9]} 77. Rb5 {[%clk 0:00:05.6]}
1-0

[Event "Late-Titled-Tuesday-Blitz-March-12-2024"]
[Site "Chess.com"]
[Date "2024.03.12"]
[Round "1"]
[White "Casablanca"]
[Black "rasmussvane"]
[Result "1/2-1/2"]
[WhiteElo "2541"]
[BlackElo "2948"]
[TimeControl "180+1"]
[EndTime "14:09:01 PDT"]
[Termination "Game drawn by stalemate"]

1. d4 {[%clk 0:03:00.9]} 1... d5 {[%clk 0:02:57.9]} 2. c4 {[%clk 0:03:01.2]}
2... e6 {[%clk 0:02:55.6]} 3. Nc3 {[%clk 0:03:01.2]} 3... h6 {[%clk 0:02:51.2]}
4. Nf3 {[%clk 0:03:01]} 4... a6 {[%clk 0:02:49.3]} 5. e3 {[%clk 0:02:59.8]} 5...
Nf6 {[%clk 0:02:47]} 6. a3 {[%clk 0:02:59]} 6... dxc4 {[%clk 0:02:40.3]} 7. Bxc4
{[%clk 0:02:59.9]} 7... b5 {[%clk 0:02:40.1]} 8. Be2 {[%clk 0:03:00.3]} 8... Bb7
{[%clk 0:02:39.5]} 9. O-O {[%clk 0:03:00.1]} 9... Nbd7 {[%clk 0:02:36.2]} 10. b4
{[%clk 0:02:56.1]} 10... Bd6 {[%clk 0:02:33.6]} 11. Bb2 {[%clk 0:02:55]} 11...
O-O {[%clk 0:02:32]} 12. Qb3 {[%clk 0:02:54.2]} 12... e5 {[%clk 0:02:27.4]} 13.
Rfd1 {[%clk 0:02:53.2]} 13... Qe7 {[%clk 0:02:26.3]} 14. h3 {[%clk 0:02:46]}
14... Rfe8 {[%clk 0:02:14.1]} 15. Rac1 {[%clk 0:02:43]} 15... exd4 {[%clk
0:02:04.7]} 16. Nxd4 {[%clk 0:02:43]} 16... g6 {[%clk 0:02:03.1]} 17. Bf3 {[%clk
0:02:41.1]} 17... Bxf3 {[%clk 0:02:00.7]} 18. Nxf3 {[%clk 0:02:42]} 18... Nb6
{[%clk 0:01:57.2]} 19. Nb1 {[%clk 0:02:35.3]} 19... Ne4 {[%clk 0:01:33.4]} 20.
Nbd2 {[%clk 0:02:34.4]} 20... Nxd2 {[%clk 0:01:31.4]} 21. Nxd2 {[%clk
0:02:32.1]} 21... Rad8 {[%clk 0:01:25.7]} 22. Bd4 {[%clk 0:02:29.6]} 22... Be5
{[%clk 0:01:23]} 23. Bxb6 {[%clk 0:02:28.4]} 23... cxb6 {[%clk 0:01:23.9]} 24.
Nf3 {[%clk 0:02:28.5]} 24... Bf6 {[%clk 0:01:22.4]} 25. Rc6 {[%clk 0:02:12.9]}
25... Rxd1+ {[%clk 0:01:11]} 26. Qxd1 {[%clk 0:02:13.8]} 26... Rd8 {[%clk
0:01:11.4]} 27. Qc2 {[%clk 0:01:51.1]} 27... Rd6 {[%clk 0:01:10.7]} 28. Rxd6
{[%clk 0:01:45.1]} 28... Qxd6 {[%clk 0:01:10.9]} 29. Qc8+ {[%clk 0:01:45.7]}
29... Kg7 {[%clk 0:01:09.8]} 30. Qxa6 {[%clk 0:01:46.6]} 30... Qc6 {[%clk
0:00:59.8]} 31. Nd4 {[%clk 0:01:27.8]} 31... Qc1+ {[%clk 0:00:43]} 32. Kh2
{[%clk 0:01:22.1]} 32... Qd2 {[%clk 0:00:40.9]} 33. Qxb5 {[%clk 0:01:14.3]}
33... Qxf2 {[%clk 0:00:39.6]} 34. Qe2 {[%clk 0:01:02.9]} 34... Be5+ {[%clk
0:00:23.9]} 35. Kh1 {[%clk 0:01:03.1]} 35... Qf6 {[%clk 0:00:24.7]} 36. Nf3
{[%clk 0:01:00.3]} 36... Bd6 {[%clk 0:00:24.3]} 37. Qd1 {[%clk 0:00:53.7]} 37...
Kg8 {[%clk 0:00:20.8]} 38. Qd4 {[%clk 0:00:51.2]} 38... Qd8 {[%clk 0:00:18]} 39.
e4 {[%clk 0:00:44.7]} 39... Qc7 {[%clk 0:00:18]} 40. e5 {[%clk 0:00:45.3]} 40...
Be7 {[%clk 0:00:18.5]} 41. Qe4 {[%clk 0:00:35.6]} 41... b5 {[%clk 0:00:17.9]}
42. e6 {[%clk 0:00:33.6]} 42... Bf6 {[%clk 0:00:15.9]} 43. exf7+ {[%clk
0:00:33.6]} 43... Kxf7 {[%clk 0:00:16.4]} 44. Qd5+ {[%clk 0:00:33.9]} 44... Kg7
{[%clk 0:00:16.8]} 45. Qxb5 {[%clk 0:00:30.1]} 45... Qc1+ {[%clk 0:00:16.9]} 46.
Kh2 {[%clk 0:00:30.8]} 46... Qc7+ {[%clk 0:00:17.4]} 47. Kg1 {[%clk 0:00:31.2]}
47... Qc1+ {[%clk 0:00:17.5]} 48. Kf2 {[%clk 0:00:31.6]} 48... Qb2+ {[%clk
0:00:16.8]} 49. Kg3 {[%clk 0:00:30]} 49... Qxa3 {[%clk 0:00:17.1]} 50. Qd7+
{[%clk 0:00:29.5]} 50... Kf8 {[%clk 0:00:16.6]} 51. b5 {[%clk 0:00:29]} 51...
Be5+ {[%clk 0:00:13.1]} 52. Kf2 {[%clk 0:00:28.1]} 52... Qb2+ {[%clk 0:00:10.4]}
53. Ke3 {[%clk 0:00:26.9]} 53... Bf6 {[%clk 0:00:09.2]} 54. Qc8+ {[%clk
0:00:20.6]} 54... Ke7 {[%clk 0:00:08.9]} 55. Qc5+ {[%clk 0:00:20.4]} 55... Kf7
{[%clk 0:00:07.8]} 56. Qc4+ {[%clk 0:00:20.7]} 56... Ke7 {[%clk 0:00:08.1]} 57.
Qe2 {[%clk 0:00:21.4]} 57... Qc3+ {[%clk 0:00:05.1]} 58. Kf2+ {[%clk 0:00:21.8]}
58... Kf7 {[%clk 0:00:05.6]} 59. g4 {[%clk 0:00:22.2]} 59... Qc5+ {[%clk
0:00:05.5]} 60. Kg2 {[%clk 0:00:22.6]} 60... h5 {[%clk 0:00:05.8]} 61. Qd3
{[%clk 0:00:21.2]} 61... hxg4 {[%clk 0:00:05.7]} 62. hxg4 {[%clk 0:00:22.1]}
62... Qb4 {[%clk 0:00:05.4]} 63. Qd5+ {[%clk 0:00:21.9]} 63... Ke7 {[%clk
0:00:04.6]} 64. g5 {[%clk 0:00:22.8]} 64... Bg7 {[%clk 0:00:04.5]} 65. Qc6
{[%clk 0:00:19.2]} 65... Qg4+ {[%clk 0:00:04.3]} 66. Kf2 {[%clk 0:00:19.7]}
66... Qf5 {[%clk 0:00:04.2]} 67. Qc7+ {[%clk 0:00:19.1]} 67... Kf8 {[%clk
0:00:04.3]} 68. Qd8+ {[%clk 0:00:19.5]} 68... Kf7 {[%clk 0:00:04.6]} 69. Qc7+
{[%clk 0:00:18.5]} 69... Kg8 {[%clk 0:00:05.1]} 70. Qc4+ {[%clk 0:00:16.9]}
70... Kh7 {[%clk 0:00:04.9]} 71. Qh4+ {[%clk 0:00:17.1]} 71... Kg8 {[%clk
0:00:05.1]} 72. Qc4+ {[%clk 0:00:15.8]} 72... Kh7 {[%clk 0:00:05.4]} 73. b6
{[%clk 0:00:15.4]} 73... Qd7 {[%clk 0:00:03.7]} 74. Qh4+ {[%clk 0:00:11.5]}
74... Kg8 {[%clk 0:00:03.9]} 75. Qc4+ {[%clk 0:00:11.2]} 75... Kh7 {[%clk
0:00:04.6]} 76. Qc7 {[%clk 0:00:10.7]} 76... Qd5 {[%clk 0:00:01.9]} 77. b7
{[%clk 0:00:07.9]} 77... Qa2+ {[%clk 0:00:02]} 78. Kg3 {[%clk 0:00:07.4]} 78...
Qe2 {[%clk 0:00:01.1]} 79. b8=Q {[%clk 0:00:06.8]} 79... Qg2+ {[%clk 0:00:01.2]}
80. Kf4 {[%clk 0:00:03.4]} 80... Qxf3+ {[%clk 0:00:01.5]} 81. Kxf3 {[%clk
0:00:03.1]} 1/2-1/2

[Event "Late-Titled-Tuesday-Blitz-March-12-2024"]
[Site "Chess.com"]
[Date "2024.03.12"]
[Round "1"]
[White "joksijoksi"]
[Black "Resignify"]
[Result "1/2-1/2"]
[WhiteElo "2605"]
[BlackElo "2243"]
[TimeControl "180+1"]
[EndTime "14:09:19 PDT"]
[Termination "Game drawn by 50-move rule"]

1. d4 {[%clk 0:03:00.2]} 1... Nf6 {[%clk 0:02:59.9]} 2. c4 {[%clk 0:02:57.4]}
2... e6 {[%clk 0:02:59.8]} 3. Nf3 {[%clk 0:02:57.6]} 3... b6 {[%clk 0:02:57.1]}
4. g3 {[%clk 0:02:56.9]} 4... Bb7 {[%clk 0:02:57.3]} 5. Bg2 {[%clk 0:02:57.3]}
5... Be7 {[%clk 0:02:57.4]} 6. O-O {[%clk 0:02:57.7]} 6... O-O {[%clk
0:02:57.6]} 7. Nc3 {[%clk 0:02:58.1]} 7... d5 {[%clk 0:02:53.5]} 8. cxd5 {[%clk
0:02:55.8]} 8... Nxd5 {[%clk 0:02:50.8]} 9. Re1 {[%clk 0:02:55.1]} 9... Nd7
{[%clk 0:02:49.7]} 10. e4 {[%clk 0:02:54.4]} 10... Nxc3 {[%clk 0:02:47.5]} 11.
bxc3 {[%clk 0:02:55.3]} 11... Re8 {[%clk 0:02:44.1]} 12. Bb2 {[%clk 0:02:54.7]}
12... Nf6 {[%clk 0:02:41.8]} 13. Ne5 {[%clk 0:02:48.4]} 13... Nd7 {[%clk
0:02:39.5]} 14. f4 {[%clk 0:02:47.8]} 14... Nxe5 {[%clk 0:02:26.9]} 15. fxe5
{[%clk 0:02:48.7]} 15... Bg5 {[%clk 0:02:17.6]} 16. Kh1 {[%clk 0:02:48.5]} 16...
Qd7 {[%clk 0:02:10.6]} 17. h4 {[%clk 0:02:47.2]} 17... Be7 {[%clk 0:02:10]} 18.
Qg4 {[%clk 0:02:46.8]} 18... Kh8 {[%clk 0:02:08]} 19. Rf1 {[%clk 0:02:46.4]}
19... Rf8 {[%clk 0:02:07.6]} 20. h5 {[%clk 0:02:44.6]} 20... c5 {[%clk
0:02:01.2]} 21. Rad1 {[%clk 0:02:43.5]} 21... cxd4 {[%clk 0:02:00.6]} 22. cxd4
{[%clk 0:02:44.4]} 22... Rac8 {[%clk 0:01:59.2]} 23. d5 {[%clk 0:02:41.1]} 23...
Rc2 {[%clk 0:01:51.5]} 24. Ba1 {[%clk 0:02:36.4]} 24... Ba6 {[%clk 0:01:38.9]}
25. dxe6 {[%clk 0:02:25.9]} 25... Qxe6 {[%clk 0:01:29.8]} 26. Qxe6 {[%clk
0:02:24]} 26... fxe6 {[%clk 0:01:29.4]} 27. Rxf8+ {[%clk 0:02:24]} 27... Bxf8
{[%clk 0:01:29.5]} 28. Rd8 {[%clk 0:02:22.8]} 28... Kg8 {[%clk 0:01:28.4]} 29.
Bd4 {[%clk 0:02:16.2]} 29... Bb5 {[%clk 0:00:38.7]} 30. Bh3 {[%clk 0:02:14.2]}
30... Kf7 {[%clk 0:00:38.4]} 31. Ra8 {[%clk 0:02:09.1]} 31... Rxa2 {[%clk
0:00:35.9]} 32. Bxb6 {[%clk 0:02:07.8]} 32... Bc6 {[%clk 0:00:32]} 33. Rxa7+
{[%clk 0:02:02]} 33... Rxa7 {[%clk 0:00:30.8]} 34. Bxa7 {[%clk 0:02:02]} 34...
Bxe4+ {[%clk 0:00:31.7]} 35. Kg1 {[%clk 0:02:02.2]} 35... Bf3 {[%clk 0:00:28.8]}
36. g4 {[%clk 0:02:01.4]} 36... g6 {[%clk 0:00:28.8]} 37. Kf2 {[%clk 0:02:00.9]}
37... Be4 {[%clk 0:00:28.2]} 38. Ke3 {[%clk 0:01:59.6]} 38... Bb1 {[%clk
0:00:28.5]} 39. Kf4 {[%clk 0:01:55.7]} 39... Bh6+ {[%clk 0:00:28.6]} 40. g5
{[%clk 0:01:55]} 40... Bg7 {[%clk 0:00:27.8]} 41. h6 {[%clk 0:01:51.8]} 41...
Bf8 {[%clk 0:00:28.3]} 42. Bb6 {[%clk 0:01:48.1]} 42... Be7 {[%clk 0:00:28.8]}
43. Be3 {[%clk 0:01:47.2]} 43... Bc2 {[%clk 0:00:29.1]} 44. Bg4 {[%clk
0:01:46.7]} 44... Bb1 {[%clk 0:00:29.5]} 45. Bf3 {[%clk 0:01:47]} 45... Bc2
{[%clk 0:00:30]} 46. Bb6 {[%clk 0:01:37.9]} 46... Bd3 {[%clk 0:00:29.8]} 47. Bc7
{[%clk 0:01:37.9]} 47... Bc2 {[%clk 0:00:29.7]} 48. Bd6 {[%clk 0:01:36.2]} 48...
Bd8 {[%clk 0:00:30]} 49. Be2 {[%clk 0:01:26.3]} 49... Bb1 {[%clk 0:00:22.8]} 50.
Bb5 {[%clk 0:01:26.1]} 50... Bc2 {[%clk 0:00:20.9]} 51. Bc4 {[%clk 0:01:26]}
51... Bb1 {[%clk 0:00:21.4]} 52. Bb3 {[%clk 0:01:26.4]} 52... Bd3 {[%clk
0:00:21.4]} 53. Bc5 {[%clk 0:01:26.3]} 53... Bf5 {[%clk 0:00:21.5]} 54. Be3
{[%clk 0:01:25.1]} 54... Bd3 {[%clk 0:00:21.9]} 55. Kf3 {[%clk 0:01:23.8]} 55...
Bb1 {[%clk 0:00:20.9]} 56. Ke2 {[%clk 0:01:23.4]} 56... Be7 {[%clk 0:00:20.2]}
57. Bf4 {[%clk 0:01:23.5]} 57... Be4 {[%clk 0:00:20.2]} 58. Ke3 {[%clk
0:01:23.7]} 58... Bc6 {[%clk 0:00:20.3]} 59. Kd4 {[%clk 0:01:22.2]} 59... Bf3
{[%clk 0:00:20.5]} 60. Ba4 {[%clk 0:01:20.3]} 60... Be2 {[%clk 0:00:20.7]} 61.
Bd7 {[%clk 0:01:15.7]} 61... Bf3 {[%clk 0:00:21.1]} 62. Kc4 {[%clk 0:00:48.7]}
62... Be4 {[%clk 0:00:20.9]} 63. Kb5 {[%clk 0:00:47.5]} 63... Bf3 {[%clk
0:00:20.9]} 64. Kb6 {[%clk 0:00:47.3]} 64... Be4 {[%clk 0:00:20.8]} 65. Kc7
{[%clk 0:00:47.1]} 65... Bf3 {[%clk 0:00:20.1]} 66. Bb5 {[%clk 0:00:47]} 66...
Be4 {[%clk 0:00:19.3]} 67. Bc4 {[%clk 0:00:47.2]} 67... Bf5 {[%clk 0:00:19.4]}
68. Kd7 {[%clk 0:00:47.3]} 68... Bg4 {[%clk 0:00:19.5]} 69. Be3 {[%clk
0:00:45.9]} 69... Bf5 {[%clk 0:00:19.9]} 70. Be2 {[%clk 0:00:44]} 70... Bh3
{[%clk 0:00:19.8]} 71. Bd3 {[%clk 0:00:43.1]} 71... Bg4 {[%clk 0:00:20.1]} 72.
Be4 {[%clk 0:00:42.7]} 72... Bh3 {[%clk 0:00:20.3]} 73. Bf3 {[%clk 0:00:42.1]}
73... Bf5 {[%clk 0:00:20.4]} 74. Kc6 {[%clk 0:00:37.7]} 74... Bh3 {[%clk
0:00:20.3]} 75. Kb5 {[%clk 0:00:37.7]} 75... Bf5 {[%clk 0:00:20.9]} 76. Kc4
{[%clk 0:00:38.1]} 76... Bh3 {[%clk 0:00:21.5]} 77. Kd3 {[%clk 0:00:36.1]} 77...
Bf5+ {[%clk 0:00:22]} 78. Kd2 {[%clk 0:00:36.6]} 78... Bh3 {[%clk 0:00:22]} 79.
Be4 {[%clk 0:00:36.2]} 79... Bg4 {[%clk 0:00:22.3]} 80. Ke1 {[%clk 0:00:36.5]}
80... Bh3 {[%clk 0:00:20]} 81. Kf2 {[%clk 0:00:35.1]} 81... Bg4 {[%clk
0:00:20.5]} 82. Bc2 {[%clk 0:00:35.6]} 82... Bh5 {[%clk 0:00:18.9]} 83. Bd3
{[%clk 0:00:28.6]} 83... Bg4 {[%clk 0:00:19.1]} 84. Kg3 {[%clk 0:00:27.3]} 84...
Bd1 {[%clk 0:00:19.1]} 85. Bf1 {[%clk 0:00:27.2]} 85... Bb3 {[%clk 0:00:19.1]}
86. Bg2 {[%clk 0:00:27.2]} 86... Bc2 {[%clk 0:00:19.4]} 87. Kf4 {[%clk
0:00:26.6]} 87... Bb3 {[%clk 0:00:19.5]} 88. Bd2 {[%clk 0:00:26.2]} 88... Bc2
{[%clk 0:00:19.5]} 89. Ba5 {[%clk 0:00:25.7]} 89... Bb1 {[%clk 0:00:18.9]} 90.
Bc7 {[%clk 0:00:24.6]} 90... Bc2 {[%clk 0:00:19.2]} 91. Bd6 {[%clk 0:00:23.8]}
1/2-1/2